bitfinex-derivatives/quotes_SOLF0:USTF0_20241230
["timestamp","ask_amount","ask_price","bid_price","bid_amount"]
[1735573604657,19.52634895,188.3,188.17,3.1746]
[1735573605055,19.52634895,188.27,188.15,10.05364577]
[1735573605256,3.94,188.26,188.15,2.6628]
[1735573605556,3.94,188.26,188.16,2.6627]
[1735573606660,19.52634895,188.24,188.1,2.6635]
[1735573606957,19.52634895,188.21,188.07,80.23583911]
[1735573607151,3.94,188.2,188.07,80.23583911]
[1735573607354,3.94,188.2,188.1,2.6635]
[1735573607556,3.94,188.2,188.07,4.7538]
[1735573607860,3.94,188.2,188.11,2.6634]
[1735573608057,3.94,188.2,188.07,4.7538]
[1735573608259,3.94,188.2,188.08,4.09770867]
[1735573608449,3.94,188.2,188.07,4.7538]
[1735573609052,3.94,188.2,188.1,2.6635]
[1735573609452,3.94,188.2,188.07,7.4176]
[1735573609659,3.94,188.2,188.07,4.7538]
[1735573610356,3.94,188.2,188.07,24.28014895]
[1735573610561,1.4879,188.23,188.1,19.52634895]
[1735573610860,5.4279,188.23,188.1,19.52634895]
[1735573611257,5.4279,188.23,188.11,2.6633]
[1735573611868,5.4279,188.23,188.1,2.6635]
[1735573612054,5.4279,188.23,188.07,24.28014895]
[1735573612252,19.52634895,188.21,188.07,24.28014895]
[1735573613265,1.4879,188.23,188.07,24.28014895]
[1735573613458,3.94,188.22,188.1,19.52634895]
[1735573613654,3.94,188.22,188.13,2.663]
[1735573613962,3.94,188.22,188.1,19.52634895]
[1735573614765,3.94,188.22,188.14,2.6629]
[1735573615862,3.94,188.22,188.1,19.52634895]
[1735573616067,3.94,188.22,188.07,24.28014895]
[1735573616466,3.94,188.22,188.11,2.6634]
[1735573617270,3.94,188.22,188.07,24.28014895]
[1735573617768,3.94,188.22,188.11,2.6633]
[1735573618073,19.52634895,188.21,188.07,4.7538]
[1735573618262,3.94,188.22,188.07,4.7538]
[1735573618263,19.52634895,188.18,188.07,4.7538]
[1735573619164,19.52634895,188.18,188.08,2.6637]
[1735573619366,19.52634895,188.21,188.07,4.7538]
[1735573619570,3.94,188.2,188.07,4.7538]
[1735573619770,3.94,188.2,188.1,2.6635]
[1735573620172,3.94,188.2,188.09,2.6636]
[1735573620372,3.94,188.2,188.07,4.7538]
[1735573620773,19.52634895,188.18,188.07,4.7538]
[1735573620962,19.52634895,188.15,188.02,1.5881]
[1735573621167,1.499,188.24,188.02,3.0952]
[1735573621168,19.52634895,188.12,188.02,3.0952]
[1735573621470,3.94,188.11,188.02,5.7598]
[1735573621873,3.94,188.11,188.02,3.0952]
[1735573622173,3.94,188.11,188.01,1.5237]
[1735573622570,19.52634895,188.09,187.98,1.5881]
[1735573622870,19.52634895,188.06,187.98,1.5881]
[1735573623075,3.94,188.05,187.98,1.5881]
[1735573623667,3.94,188.05,187.95,4.1798]
[1735573625678,3.94,188.05,187.96,2.6654]
[1735573626184,3.94,188.05,187.95,1.5142]
[1735573626378,3.94,188.05,187.95,4.1798]
[1735573627085,19.52634895,188.03,187.91,3.1801]
[1735573627783,19.52634895,188.0,187.85,1.4884]
[1735573627977,3.94,187.99,187.86,21.06164895]
[1735573628280,3.94,188.0,187.86,21.06164895]
[1735573630478,3.94,188.0,187.91,2.6662]
[1735573630876,3.94,188.0,187.86,21.06164895]
[1735573631078,3.94,188.0,187.89,2.6664]
[1735573631479,3.94,188.0,187.9,2.6663]
[1735573631976,3.94,188.0,187.86,21.06164895]
[1735573631977,3.94,188.0,187.89,2.6664]
[1735573632182,3.94,188.0,187.86,21.06164895]
[1735573632684,3.92,187.99,187.86,21.06164895]
[1735573632881,3.92,188.03,187.89,19.52634895]
[1735573633282,3.92,188.02,187.95,2.6656]
[1735573633477,3.92,188.02,187.96,3.0876]
[1735573635088,3.92,188.02,187.92,2.6661]
[1735573635390,3.92,188.02,187.9,3.1267]
[1735573636189,3.92,188.04,187.96,2.6655]
[1735573636786,3.92,188.04,187.93,1.5539]
[1735573636787,3.92,188.04,187.95,2.6656]
[1735573637993,3.92,188.04,187.96,2.6655]
[1735573638682,3.92,188.04,187.93,1.5539]
[1735573639490,3.92,188.04,187.95,2.6656]
[1735573639687,3.92,188.04,187.93,1.5539]
[1735573640891,19.52634895,188.03,187.93,1.5539]
[1735573641291,19.52634895,188.03,187.95,2.6656]
[1735573641496,19.52634895,188.03,187.93,1.5539]
[1735573641497,3.92,188.03,187.93,1.5539]
[1735573641692,19.52634895,188.1,187.93,1.5539]
[1735573641996,3.92,188.09,187.95,19.52634895]
[1735573642195,3.92,188.09,187.95,3.92]
[1735573642396,3.92,188.09,187.96,2.6655]
[1735573642596,3.92,188.09,187.95,3.92]
[1735573642993,19.52634895,188.13,187.98,19.52634895]
[1735573643194,3.92,188.12,187.99,7.05838673]
[1735573643390,3.92,188.12,188.02,2.6645]
[1735573643596,3.92,188.12,188.03,1.4784]
[1735573643990,3.92,188.12,188.0,2.6649]
[1735573644193,3.92,188.12,187.99,10.31776294]
[1735573644394,19.52634895,188.1,187.99,10.31776294]
[1735573645194,19.52634895,188.1,187.99,2.9761]
[1735573645701,19.52634895,188.07,187.99,2.9761]
[1735573645902,3.92,188.06,187.99,2.9761]
[1735573646897,3.92,188.06,187.99,5.6412]
[1735573647291,3.92,188.06,187.99,2.9761]
[1735573647597,19.52634895,188.13,187.99,2.9761]
[1735573647906,19.52634895,188.16,188.06,2.664]
[1735573648197,19.52634895,188.16,188.0,3.92]
[1735573648198,3.92,188.15,188.0,3.92]
[1735573648497,3.92,188.15,188.04,2.6643]
[1735573649097,3.92,188.15,188.01,1.5715]
[1735573649304,19.52634895,188.06,187.99,2.9761]
[1735573649499,19.52634895,188.06,188.0,7.34166294]
[1735573649500,3.92,188.05,188.0,7.34166294]
[1735573650604,19.52634895,188.03,187.92,49.37731085]
[1735573650803,19.52634895,188.03,187.93,4.10980569]
[1735573651006,19.52634895,188.03,187.92,52.04321085]
[1735573651206,19.52634895,188.03,187.92,49.37731085]
[1735573652006,19.52634895,188.03,187.92,3.2152]
[1735573653507,1.5112,188.04,187.92,3.2152]
[1735573653508,19.62204952,188.01,187.92,3.2152]
[1735573655609,19.62204952,188.01,187.89,29.36665178]
[1735573655908,19.62204952,188.01,187.9,4.1133078]
[1735573656114,19.62204952,188.01,187.89,29.36665178]
[1735573656115,19.62204952,187.98,187.89,29.36665178]
[1735573656409,3.92,187.97,187.89,29.36665178]
[1735573656610,3.92,187.97,187.87,29.36665178]
[1735573657404,19.62204952,187.95,187.87,29.36665178]
[1735573658308,19.62204952,187.95,187.84,88.09995537]
[1735573658309,19.62204952,187.92,187.84,7.34166294]
[1735573658510,3.92,187.91,187.84,7.34166294]
[1735573659400,19.62204952,187.89,187.84,7.34166294]
[1735573659600,19.62204952,187.89,187.78,29.36665178]
[1735573659805,19.62204952,187.86,187.78,29.36665178]
[1735573660098,3.94,187.85,187.78,29.36665178]
[1735573660811,5.5366,187.85,187.78,29.36665178]
[1735573661004,19.62204952,187.83,187.71,4.8249]
[1735573662309,3.94,187.85,187.74,19.62204952]
[1735573662509,3.94,187.85,187.75,4.11193349]
[1735573662805,3.94,187.85,187.74,19.62204952]
[1735573663005,3.94,187.85,187.75,4.11191412]
[1735573663206,3.94,187.85,187.76,4.11191412]
[1735573663410,3.94,187.85,187.74,19.62204952]
[1735573663606,3.94,187.85,187.75,4.11195407]
[1735573663821,3.94,187.85,187.74,19.62204952]
[1735573664007,21.22264952,187.9,187.75,4.11196112]
[1735573664204,21.22264952,187.9,187.78,2.6681]
[1735573664205,3.9,187.89,187.78,2.6681]
[1735573664403,3.9,187.89,187.74,19.62204952]
[1735573664608,3.9,187.89,187.75,4.11256501]
[1735573664804,3.9,187.89,187.74,19.62204952]
[1735573665009,3.9,187.89,187.75,4.11257227]
[1735573665212,19.62204952,187.87,187.72,3.9]
[1735573665411,19.62204952,187.87,187.73,4.11280487]
[1735573665609,19.62204952,187.87,187.71,4.8249]
[1735573665810,19.62204952,187.87,187.72,4.11091792]
[1735573666009,19.62204952,187.84,187.73,4.11091792]
[1735573666207,3.9,187.83,187.71,4.8249]
[1735573666404,3.9,187.83,187.72,4.11106673]
[1735573666610,3.9,187.83,187.71,4.8249]
[1735573666807,19.62204952,187.81,187.71,4.8249]
[1735573667209,19.62204952,187.81,187.66,7.34166294]
[1735573667503,19.62204952,187.81,187.67,4.11036949]
[1735573667706,19.62204952,187.78,187.66,4.6149]
[1735573668015,3.9,187.77,187.66,4.6149]
[1735573669314,19.62204952,187.74,187.66,3.0573]
[1735573669609,19.62204952,187.74,187.61,2.6704]
[1735573669810,19.67764955,187.75,187.61,2.6704]
[1735573670011,19.67764955,187.75,187.6,4.7033]
[1735573670210,19.67764955,187.75,187.61,4.10254802]
[1735573670409,19.67764955,187.75,187.6,4.7033]
[1735573670807,3.9,187.77,187.6,4.7033]
[1735573670808,19.67764955,187.72,187.6,4.7033]
[1735573671017,3.9,187.71,187.6,4.7033]
[1735573672018,3.9,187.74,187.61,19.67764955]
[1735573672217,3.9,187.74,187.64,19.67764955]
[1735573672606,3.9,187.74,187.62,3.9]
[1735573672810,3.9,187.74,187.63,19.67764955]
[1735573673116,3.9,187.74,187.67,2.6695]
[1735573673316,3.9,187.74,187.63,19.67764955]
[1735573674018,3.9,187.74,187.6,28.28094955]
[1735573674216,3.9,187.74,187.65,2.6699]
[1735573674719,3.9,187.74,187.6,27.05144955]
[1735573674915,19.67764955,187.72,187.6,4.7033]
[1735573676418,3.9,187.71,187.6,4.7033]
[1735573677012,3.9,187.71,187.6,7.3739]
[1735573677217,3.9,187.71,187.6,4.7033]
[1735573679322,3.9,187.7,187.6,4.7033]
[1735573680828,19.67764955,187.69,187.54,50.29425348]
[1735573681027,19.67764955,187.69,187.55,7.342]
[1735573681223,19.67764955,187.69,187.55,4.6707]
[1735573681419,19.67764955,187.66,187.55,4.6707]
[1735573683531,19.67764955,187.66,187.55,7.342]
[1735573683931,3.9,187.65,187.59,2.6708]
[1735573684334,3.9,187.66,187.59,2.6708]
[1735573684628,3.9,187.66,187.57,19.67764955]
[1735573684828,19.67764955,187.77,187.6,19.67764955]
[1735573685033,3.9,187.76,187.66,2.6697]
[1735573685327,3.9,187.76,187.6,19.67764955]
[1735573685736,3.9,187.75,187.66,2.6697]
[1735573686430,3.9,187.75,187.65,2.6699]
[1735573686934,3.9,187.75,187.64,2.6701]
[1735573687433,3.9,187.75,187.57,23.57764955]
[1735573687632,3.9,187.75,187.6,19.67764955]
[1735573688335,3.9,187.76,187.63,19.67764955]
[1735573688530,3.9,187.76,187.64,4.8662]
[1735573689032,3.9,187.76,187.68,2.6694]
[1735573689236,3.9,187.76,187.64,4.8662]
[1735573689633,3.9,187.76,187.68,2.6694]
[1735573689838,1.6082,187.79,187.64,4.8662]
[1735573690128,3.9,187.78,187.66,2.6697]
[1735573690324,3.9,187.78,187.64,4.8662]
[1735573690727,3.9,187.78,187.68,2.6695]
[1735573690924,3.9,187.78,187.64,4.8662]
[1735573691125,3.1777,187.86,187.66,19.67764955]
[1735573691336,3.9,187.8,187.66,19.67764955]
[1735573692029,3.9,187.8,187.73,2.6687]
[1735573692335,3.9,187.83,187.69,19.67764955]
[1735573692530,3.9,187.83,187.75,2.6684]
[1735573692834,3.9,187.83,187.69,19.67764955]
[1735573693029,19.67764955,187.81,187.67,11.53821886]
[1735573693225,19.67764955,187.81,187.71,29.36665178]
[1735573693634,19.67764955,187.81,187.71,32.03575178]
[1735573693838,19.67764955,187.81,187.71,29.36665178]
[1735573694333,19.67764955,187.81,187.71,32.03575178]
[1735573694534,19.67764955,187.81,187.71,2.6691]
[1735573694938,19.67764955,187.81,187.69,2.6692]
[1735573695138,19.67764955,187.81,187.68,29.36665178]
[1735573695340,19.67764955,187.78,187.68,29.36665178]
[1735573695528,19.67764955,187.75,187.68,29.36665178]
[1735573695729,3.9,187.74,187.68,29.36665178]
[1735573696640,3.9,187.74,187.64,153.38124709]
[1735573696641,19.67764955,187.72,187.64,1.6113]
[1735573697231,19.67764955,187.72,187.62,7.34166294]
[1735573697831,19.67764955,187.69,187.59,3.0497]
[1735573698038,3.9,187.68,187.59,3.0497]
[1735573698738,19.67764955,187.69,187.59,3.0497]
[1735573698935,3.9,187.68,187.59,3.0497]
[1735573699136,3.9,187.68,187.6,2.6705]
[1735573699337,3.9,187.68,187.59,3.0497]
[1735573700129,3.9,187.68,187.64,2.6701]
[1735573700329,3.9,187.68,187.59,3.0497]
[1735573700533,3.9,187.68,187.6,4.11687941]
[1735573700730,3.9,187.68,187.61,6.78727941]
[1735573700930,3.9,187.68,187.62,4.11687941]
[1735573701142,3.9,187.68,187.6,50.44972818]
[1735573702133,3.9,187.67,187.6,50.44972818]
[1735573702343,3.9,187.67,187.61,4.11993181]
[1735573702537,3.9,187.67,187.62,4.11993181]
[1735573702738,3.9,187.67,187.63,4.11993181]
[1735573702940,3.9,187.67,187.59,3.0497]
[1735573703142,3.9,187.67,187.6,4.12340232]
[1735573703340,3.9,187.67,187.61,4.12340232]
[1735573703547,3.9,187.67,187.62,4.12340232]
[1735573703739,3.9,187.67,187.6,29.36665178]
[1735573703940,3.9,187.67,187.61,4.12665878]
[1735573704244,19.67764955,187.72,187.6,29.36665178]
[1735573704434,3.9,187.68,187.59,10.39136294]
[1735573704638,3.9,187.67,187.6,4.12799335]
[1735573704838,3.9,187.67,187.59,10.39136294]
[1735573705033,3.9,187.67,187.6,4.12808129]
[1735573705242,3.9,187.67,187.61,4.12808129]
[1735573705439,3.9,187.67,187.59,10.39136294]
[1735573705641,3.9,187.67,187.59,3.0497]
[1735573705846,3.9,187.67,187.59,1.5347]
[1735573706043,19.67764955,187.66,187.57,30.93625178]
[1735573706639,19.67764955,187.66,187.57,1.5696]
[1735573709146,3.9,187.65,187.58,4.12963588]
[1735573709449,3.9,187.65,187.57,1.5696]
[1735573710345,1.584,187.74,187.57,1.5696]
[1735573710548,23.57764955,187.73,187.61,2.6704]
[1735573710943,19.67764955,187.7,187.57,1.5696]
[1735573711139,19.67764955,187.7,187.58,4.13269013]
[1735573711342,19.67764955,187.7,187.57,1.5696]
[1735573711548,19.67764955,187.7,187.58,4.13394762]
[1735573711749,19.67764955,187.7,187.57,4.2407]
[1735573711950,19.67764955,187.7,187.58,4.13384268]
[1735573712249,19.67764955,187.7,187.59,4.13384268]
[1735573712548,23.57764955,187.73,187.6,4.13453742]
[1735573712549,3.9,187.69,187.6,4.13453742]
[1735573712749,3.9,187.69,187.57,1.5696]
[1735573712946,3.9,187.69,187.58,4.1344821]
[1735573713156,3.9,187.69,187.59,4.1344821]
[1735573713450,3.9,187.69,187.57,1.5696]
[1735573713647,19.67764955,187.67,187.57,1.5696]
[1735573714951,19.67764955,187.67,187.57,4.2407]
[1735573715945,19.67764955,187.67,187.57,1.5696]
[1735573716146,19.67764955,187.67,187.58,2.6708]
[1735573717048,19.67764955,187.67,187.59,2.6707]
[1735573717550,3.9,187.69,187.59,2.6707]
[1735573718252,19.67764955,187.67,187.57,1.5696]
[1735573718645,19.67764955,187.67,187.54,1.6122]
[1735573718949,19.67764955,187.67,187.54,3.0992]
[1735573719253,19.67764955,187.67,187.54,5.7707]
[1735573719455,19.67764955,187.64,187.54,3.0992]
[1735573719653,3.9,187.63,187.53,1.5546]
[1735573721748,3.9,187.63,187.49,3.1091]
[1735573721955,3.9,187.63,187.5,4.13341571]
[1735573722154,19.67764955,187.61,187.49,5.7813]
[1735573722357,19.67764955,187.61,187.5,4.13341928]
[1735573722654,19.67764955,187.61,187.49,5.7813]
[1735573723057,19.67764955,187.61,187.49,3.1091]
[1735573725352,19.67764955,187.58,187.47,1.5946]
[1735573725559,3.9,187.57,187.47,1.5946]
[1735573727954,3.9,187.57,187.43,3.2177]
[1735573728152,19.67764955,187.55,187.44,4.12615113]
[1735573728356,19.67764955,187.55,187.43,3.2177]
[1735573728765,19.67764955,187.52,187.43,3.2177]
[1735573728965,3.9,187.51,187.43,3.2177]
[1735573729260,3.9,187.51,187.43,1.6336]
[1735573729458,3.9,187.51,187.41,1.6275]
[1735573730163,3.9,187.51,187.4,3.07028808]
[1735573730564,3.9,187.51,187.38,3.0363]
[1735573732167,3.9,187.51,187.39,19.67764955]
[1735573732364,3.9,187.51,187.4,3.9]
[1735573732563,3.9,187.56,187.42,19.67764955]
[1735573732764,3.9,187.56,187.43,4.11671549]
[1735573732963,3.9,187.56,187.46,2.6726]
[1735573733162,3.9,187.56,187.42,19.67764955]
[1735573733359,3.9,187.56,187.45,1.6076]
[1735573733570,3.9,187.56,187.47,2.6725]
[1735573733965,3.9,187.56,187.45,1.6076]
[1735573734164,3.9,187.56,187.45,4.2804]
[1735573735167,3.9,187.56,187.45,1.6076]
[1735573735466,3.9,187.6,187.46,8.01673763]
[1735573735657,3.9,187.6,187.52,2.6718]
[1735573735860,3.9,187.6,187.48,19.67764955]
[1735573736363,3.9,187.6,187.49,4.1195144]
[1735573736570,3.9,187.6,187.48,19.67764955]
[1735573736769,3.9,187.6,187.49,4.11997118]
[1735573736971,3.9,187.6,187.51,2.6718]
[1735573737271,3.9,187.6,187.48,19.67764955]
[1735573737469,3.9,187.6,187.5,2.6721]
[1735573737865,3.9,187.6,187.52,2.6717]
[1735573738072,17.05137,187.61,187.48,19.67764955]
[1735573738269,17.05137,187.61,187.49,4.12405042]
[1735573738471,17.05137,187.61,187.53,2.6715]
[1735573739172,17.05137,187.61,187.48,19.67764955]
[1735573739366,17.05137,187.61,187.51,19.67764955]
[1735573739571,17.05137,187.61,187.52,8.02694958]
[1735573739773,17.05137,187.61,187.53,4.12694958]
[1735573740070,17.05137,187.61,187.54,4.12694958]
[1735573740373,17.05137,187.61,187.55,7.31794958]
[1735573740571,17.05137,187.61,187.56,4.12694958]
[1735573740771,12.14697,187.61,187.59,2.6707]
[1735573740971,7.24337,187.61,187.59,2.6707]
[1735573741667,7.24337,187.61,187.56,1.5957]
[1735573741862,7.24337,187.61,187.57,4.13243297]
[1735573742163,7.24337,187.61,187.58,4.13243297]
[1735573742471,7.24337,187.61,187.53,7.34166294]
[1735573742669,11.14337,187.61,187.54,4.13311522]
[1735573742864,11.14337,187.61,187.52,29.36665178]
[1735573743061,11.14337,187.61,187.53,4.1335192]
[1735573743265,11.14337,187.61,187.52,29.36665178]
[1735573743266,11.14337,187.61,187.54,4.13396742]
[1735573743467,11.14337,187.61,187.52,29.36665178]
[1735573743668,11.14337,187.61,187.53,4.13389442]
[1735573743866,30.82101955,187.61,187.47,11.24166294]
[1735573744069,30.82101955,187.61,187.48,4.13436913]
[1735573744271,30.82101955,187.61,187.49,4.13436913]
[1735573744575,30.82101955,187.61,187.5,6.80636913]
[1735573744775,30.82101955,187.61,187.51,4.13436913]
[1735573744976,30.82101955,187.61,187.5,2.672]
[1735573745178,30.82101955,187.61,187.51,4.13471074]
[1735573745474,30.82101955,187.61,187.44,52.94430133]
[1735573745774,30.82101955,187.61,187.45,4.1360829]
[1735573745775,19.67764955,187.58,187.45,4.1360829]
[1735573745977,19.67764955,187.58,187.46,4.1360829]
[1735573746175,19.67764955,187.58,187.44,30.91931249]
[1735573746176,3.9,187.57,187.47,4.1360829]
[1735573746374,3.9,187.57,187.48,4.1360829]
[1735573746568,3.9,187.57,187.44,8.93156294]
[1735573746771,3.9,187.57,187.45,4.13661771]
[1735573746977,3.9,187.57,187.46,4.13661771]
[1735573747172,3.9,187.57,187.45,2.6728]
[1735573747372,3.9,187.57,187.46,4.13661393]
[1735573747573,3.9,187.57,187.45,2.6728]
[1735573747872,3.9,187.57,187.46,4.13729426]
[1735573748081,3.9,187.57,187.47,4.13719544]
[1735573748274,3.9,187.57,187.48,4.13719544]
[1735573748474,3.9,187.57,187.44,1.5899]
[1735573748672,3.9,187.57,187.45,4.13800969]
[1735573748977,3.9,187.57,187.5,2.672]
[1735573749177,3.9,187.57,187.44,21.26754955]
[1735573749377,3.9,187.57,187.45,4.13809138]
[1735573749577,1.536,187.6,187.51,2.6718]
[1735573749778,3.9,187.59,187.51,2.6718]
[1735573750081,3.9,187.59,187.49,2.6721]
[1735573750274,19.67764955,187.58,187.44,1.5899]
[1735573750578,19.67764955,187.58,187.45,4.13853129]
[1735573750781,19.67764955,187.58,187.46,4.13853129]
[1735573751076,19.67764955,187.58,187.47,4.13853129]
[1735573751279,19.67764955,187.58,187.44,30.95655178]
[1735573751477,19.67764955,187.58,187.45,6.81188552]
[1735573751681,19.67764955,187.58,187.46,4.13918552]
[1735573751880,19.67764955,187.58,187.45,2.6727]
[1735573752174,3.9,187.57,187.46,4.13902736]
[1735573752378,3.9,187.57,187.47,4.13902736]
[1735573752574,3.9,187.57,187.48,4.13902736]
[1735573752780,3.9,187.57,187.49,4.13902736]
[1735573752978,3.9,187.57,187.5,4.13902736]
[1735573753283,3.9,187.57,187.46,3.9]
[1735573753480,3.9,187.57,187.47,4.13875395]
[1735573753781,3.9,187.57,187.5,2.672]
[1735573754581,1.536,187.6,187.51,2.6718]
[1735573754771,1.536,187.6,187.44,54.53420133]
[1735573754772,3.9,187.59,187.44,54.53420133]
[1735573754976,3.9,187.59,187.45,4.13888002]
[1735573755176,3.9,187.59,187.53,2.6716]
[1735573755376,7.24337,187.61,187.5,23.57764955]
[1735573755572,7.24337,187.61,187.53,19.67764955]
[1735573755788,7.24337,187.61,187.54,5.64340828]
[1735573756087,2.34237,187.61,187.6,2.6707]
[1735573756281,4.7032,187.71,187.6,4.13692265]
[1735573756479,3.109,187.71,187.61,4.13692265]
[1735573756674,3.109,187.71,187.62,4.13692265]
[1735573756879,3.109,187.71,187.63,4.13692265]
[1735573757080,3.109,187.71,187.59,19.67764955]
[1735573757275,3.109,187.71,187.6,4.13493233]
[1735573757480,3.109,187.71,187.63,2.6701]
[1735573758084,3.109,187.71,187.64,2.6701]
[1735573758581,3.9,187.73,187.59,19.67764955]
[1735573758785,7.0214,187.76,187.62,19.67764955]
[1735573758988,3.1214,187.76,187.63,8.03283402]
[1735573759189,3.1214,187.76,187.65,19.67764955]
[1735573759384,3.1214,187.76,187.66,4.13283402]
[1735573759583,3.1214,187.76,187.63,3.9]
[1735573759584,3.1214,187.76,187.67,4.13283402]
[1735573759880,3.1214,187.76,187.63,3.9]
[1735573760184,3.1214,187.76,187.64,4.12901833]
[1735573760394,3.9,187.75,187.62,23.57764955]
[1735573760692,3.9,187.75,187.63,4.12595824]
[1735573760984,19.67764955,187.74,187.59,7.34166294]
[1735573761286,19.67764955,187.71,187.58,6.5708]
[1735573761483,19.67764955,187.71,187.59,4.12640417]
[1735573761686,1.5128,187.7,187.58,3.9]
[1735573761885,3.9,187.69,187.59,2.6708]
[1735573762291,1.5128,187.7,187.58,3.9]
[1735573763391,1.5128,187.7,187.59,4.12504944]
[1735573763587,1.5128,187.7,187.6,4.12504944]
[1735573763787,1.5128,187.7,187.61,4.12460807]
[1735573763985,1.5128,187.7,187.58,3.9]
[1735573764189,1.5128,187.7,187.63,2.6701]
[1735573764692,1.5128,187.7,187.59,4.12348648]
[1735573764993,1.5128,187.7,187.61,2.6704]
[1735573765294,1.5128,187.7,187.58,3.9]
[1735573765491,1.5128,187.7,187.62,2.6703]
[1735573768098,1.5128,187.7,187.58,3.9]
[1735573768292,1.5128,187.7,187.59,4.12034658]
[1735573768596,1.5128,187.7,187.58,3.9]
[1735573768894,1.5128,187.7,187.61,2.6705]
[1735573769894,1.5128,187.7,187.58,3.9]
[1735573770196,1.5128,187.7,187.59,4.11928011]
[1735573770395,1.5128,187.7,187.58,3.9]
[1735573770597,1.5128,187.7,187.63,2.6701]
[1735573771197,1.5128,187.7,187.58,3.9]
[1735573771397,1.5128,187.7,187.64,2.6701]
[1735573771693,3.9,187.71,187.6,4.11826504]
[1735573771893,3.1214,187.76,187.61,4.11822261]
[1735573772096,3.1214,187.76,187.62,19.67764955]
[1735573772097,7.0214,187.76,187.62,19.67764955]
[1735573772290,7.0214,187.76,187.63,1.5256]
[1735573772601,3.1214,187.76,187.63,5.4256]
[1735573772998,3.1214,187.76,187.66,2.6697]
[1735573773196,3.1214,187.76,187.63,5.4256]
[1735573773902,3.1214,187.76,187.63,1.5256]
[1735573774305,3.1214,187.76,187.67,2.6696]
[1735573775000,3.1214,187.76,187.63,1.5256]
[1735573775400,3.1214,187.76,187.64,4.11617176]
[1735573775607,3.1214,187.76,187.63,1.5256]
[1735573776102,3.1214,187.76,187.67,2.6696]
[1735573776902,3.1214,187.76,187.63,1.5256]
[1735573777102,3.1214,187.76,187.66,2.6698]
[1735573777502,3.1214,187.76,187.66,2.6697]
[1735573777701,3.1214,187.76,187.63,1.5256]
[1735573778204,3.1214,187.76,187.64,4.11997378]
[1735573778398,3.1214,187.76,187.63,1.5256]
[1735573778597,3.1214,187.76,187.64,4.12027055]
[1735573778793,3.1214,187.76,187.71,2.669]
[1735573779299,1.472,187.79,187.67,3.9]
[1735573779499,1.472,187.79,187.75,2.6685]
[1735573779701,1.472,187.79,187.68,21.29644955]
[1735573779899,1.472,187.79,187.73,2.6687]
[1735573780101,1.472,187.79,187.68,21.29644955]
[1735573781504,1.472,187.79,187.72,2.6689]
[1735573781704,1.472,187.79,187.68,21.29644955]
[1735573782708,3.9,187.84,187.69,4.11769967]
[1735573782897,3.9,187.84,187.69,1.6028]
[1735573783102,3.9,187.84,187.77,2.6681]
[1735573783904,3.1322,187.85,187.71,19.67764955]
[1735573784102,3.1322,187.85,187.72,5.65402084]
[1735573784307,1.5414,187.88,187.74,19.67764955]
[1735573784603,1.5414,187.88,187.83,2.6673]
[1735573785607,1.5414,187.88,187.82,2.6675]
[1735573786608,1.5414,187.88,187.83,2.6673]
[1735573787006,1.5414,187.88,187.74,19.67764955]
[1735573787007,1.5414,187.88,187.75,4.10787047]
[1735573787210,4.6308,187.88,187.72,5.4379]
[1735573787400,4.6308,187.88,187.73,4.10587545]
[1735573787605,4.6308,187.88,187.72,5.4379]
[1735573787606,19.67764955,187.86,187.72,5.4379]
[1735573787815,19.67764955,187.86,187.74,2.6686]
[1735573788208,19.67764955,187.83,187.73,2.6688]
[1735573788410,3.9,187.82,187.73,2.6688]